bitfinex-derivatives/quotes_ETHF0:USTF0_20250803
["timestamp","ask_amount","ask_price","bid_price","bid_amount"]
[1754234244357,2.1514,3466.4,3466.3,25.12678]
[1754234244553,3.4937,3466.4,3466.3,25.12678]
[1754234244753,0.7522,3466.3,3465.9,3.2078]
[1754234244957,3.4937,3466.0,3465.9,3.2078]
[1754234245455,3.4937,3466.0,3465.9,23.2558]
[1754234246252,3.4937,3466.0,3465.9,3.2078]
[1754234246454,3.4937,3465.5,3465.4,45.31594]
[1754234246659,3.4937,3465.5,3465.4,65.36294]
[1754234247058,2.7415,3465.5,3465.4,46.0845]
[1754234247260,0.7522,3465.8,3464.9,0.7913]
[1754234247261,2.3832,3465.0,3464.9,0.7913]
[1754234247559,3.4937,3465.0,3464.9,21.341]
[1754234251062,3.4937,3465.0,3464.9,22.2773]
[1754234251767,2.2111,3465.0,3464.9,22.4331]
[1754234251964,1.6143,3465.0,3464.9,22.5305]
[1754234252261,2.7415,3465.0,3464.9,22.4331]
[1754234252461,2.7415,3465.0,3464.9,22.2773]
[1754234252663,3.4937,3465.0,3464.9,22.2773]
[1754234253163,3.4937,3465.0,3464.9,21.342]
[1754234253567,3.4937,3465.0,3464.9,20.048]
[1754234254766,3.4937,3465.0,3464.9,20.8393]
[1754234255166,3.4937,3465.0,3464.9,20.8383]
[1754234255667,3.4937,3465.0,3464.9,21.34]
[1754234258973,3.4937,3465.0,3464.9,20.8383]
[1754234259872,3.4937,3465.0,3464.9,21.34]
[1754234260169,3.4937,3465.0,3464.9,1.293]
[1754234260370,3.4937,3465.0,3464.9,21.34]
[1754234260964,3.4937,3465.0,3464.9,1.293]
[1754234261174,3.4937,3465.0,3464.9,20.8373]
[1754234261672,3.4937,3465.0,3464.9,21.339]
[1754234262168,3.4937,3465.0,3464.9,22.2753]
[1754234262871,3.4937,3465.0,3464.9,2.2293]
[1754234263073,3.4937,3465.0,3464.9,22.2763]
[1754234265167,1.3824,3464.7,3464.6,4.094]
[1754234265373,3.22746,3464.7,3464.6,24.321]
[1754234265573,3.22746,3464.7,3464.6,25.0365]
[1754234265874,3.22746,3464.7,3464.6,25.5722]
[1754234265875,2.6502,3464.7,3464.6,25.5722]
[1754234266070,2.6502,3464.7,3464.6,5.5272]
[1754234266274,2.6502,3464.7,3464.6,25.5712]
[1754234267070,2.717,3465.1,3465.0,0.8862]
[1754234267272,3.2274,3465.1,3465.0,2.1374]
[1754234267767,3.9856,3465.1,3465.0,1.6017]
[1754234268569,3.2078,3465.4,3465.1,0.7155]
[1754234268772,0.728,3465.4,3465.3,2.3194]
[1754234268970,1.6,3465.4,3465.3,2.3194]
[1754234269171,2.6502,3465.4,3465.3,2.3194]
[1754234271076,2.1398,3465.4,3465.3,2.3194]
[1754234271277,0.57712,3465.6,3465.5,0.9982]
[1754234271577,0.95362,3465.6,3465.5,2.3194]
[1754234271780,3.22732,3465.6,3465.5,2.3194]
[1754234272672,1.2235,3465.6,3465.5,2.3194]
[1754234272872,3.2078,3466.0,3465.9,1.0682]
[1754234273074,3.2078,3466.0,3465.9,2.3194]
[1754234274472,0.728,3466.2,3466.0,1.3212]
[1754234274778,1.2235,3466.2,3466.1,2.3194]
[1754234275575,1.2235,3466.2,3466.1,22.3574]
[1754234275876,1.2235,3466.3,3466.2,1.8244]
[1754234276071,1.6,3466.3,3466.2,2.3194]
[1754234276272,2.1398,3466.3,3466.2,2.3194]
[1754234278376,1.9594,3466.3,3466.2,2.1374]
[1754234278566,1.9594,3466.3,3466.1,20.038]
[1754234278875,3.98551,3465.6,3465.5,0.7155]
[1754234279077,3.98551,3465.6,3465.0,3.78501]
[1754234279078,0.872,3465.1,3465.0,4.3145]
[1754234279273,2.6502,3465.1,3465.0,24.8425]
[1754234279579,2.6502,3464.7,3464.6,4.094]
[1754234279873,2.6502,3464.7,3464.6,24.6627]
[1754234280079,2.6502,3464.7,3464.6,25.5602]
[1754234280272,2.1398,3464.7,3464.6,25.5602]
[1754234280474,1.6,3464.7,3464.6,25.5602]
[1754234280778,0.872,3465.0,3464.9,0.9982]
[1754234281277,2.6502,3465.0,3464.9,21.0292]
[1754234281477,2.6502,3465.0,3464.9,22.3504]
[1754234282074,2.1398,3465.0,3464.9,22.3504]
[1754234282575,2.6502,3465.0,3464.9,22.3504]
[1754234288178,2.6502,3465.0,3464.9,2.3194]
[1754234288373,2.6502,3465.0,3464.9,22.3484]
[1754234289181,2.6502,3465.0,3464.9,2.3194]
[1754234289478,2.6502,3465.0,3464.9,22.3474]
[1754234290278,0.728,3465.7,3465.6,0.57711]
[1754234290572,0.5398,3465.9,3465.8,1.6017]
[1754234290573,1.3824,3465.9,3465.8,1.6017]
[1754234290781,2.1406,3465.9,3465.8,1.2105]
[1754234290972,2.1406,3465.9,3465.8,0.7155]
[1754234291173,3.4084,3465.9,3465.8,0.7155]
[1754234292176,1.3824,3465.7,3465.6,20.025]
[1754234292380,3.4084,3465.7,3465.6,20.025]
[1754234292882,2.6502,3465.3,3465.2,2.32338]
[1754234293081,1.6,3465.3,3465.2,22.92158]
[1754234293282,1.2235,3465.3,3465.2,22.92158]
[1754234293482,2.6502,3465.3,3465.2,22.92158]
[1754234293976,2.6502,3465.3,3465.2,2.89658]
[1754234294175,2.6502,3465.3,3465.2,22.92058]
[1754234296576,2.1398,3465.3,3465.2,22.92058]
[1754234297584,2.6172,3465.3,3465.2,22.92058]
[1754234298784,2.6172,3465.3,3465.2,26.12838]
[1754234298980,3.2078,3465.8,3465.7,0.929]
[1754234299286,5.8729,3465.8,3465.7,2.2139]
[1754234299486,2.1877,3465.8,3465.7,5.4217]
[1754234299790,1.6167,3465.8,3465.7,5.4217]
[1754234300885,1.2486,3465.8,3465.7,5.4217]
[1754234301089,0.738,3465.8,3465.7,5.4217]
[1754234301281,0.5106,3466.2,3466.1,0.0689]
[1754234301482,1.4497,3466.2,3466.1,2.2139]
[1754234301688,1.9271,3466.2,3466.1,2.2139]
[1754234301987,2.6651,3466.3,3466.2,2.2139]
[1754234302682,1.6167,3466.3,3466.2,2.2139]
[1754234302883,2.6651,3466.6,3466.5,2.2139]
[1754234303589,1.2486,3466.6,3466.5,2.2139]
[1754234303982,2.6651,3466.6,3466.5,2.2139]
[1754234304185,2.6651,3466.3,3466.2,4.4096]
[1754234304382,3.4059,3466.3,3466.2,24.4256]
[1754234304583,2.6651,3466.3,3466.2,25.3805]
[1754234304785,2.6651,3466.3,3466.2,25.4147]
[1754234305088,2.8349,3466.7,3466.6,0.8601]
[1754234305277,1.3561,3466.3,3466.2,3.6901]
[1754234305477,2.0941,3466.3,3466.2,25.4137]
[1754234305679,1.6167,3466.3,3466.2,25.4137]
[1754234306195,2.0941,3466.7,3466.6,0.9149]
[1754234306390,2.6651,3466.7,3466.6,2.1909]
[1754234307489,2.6651,3466.7,3466.6,2.1567]
[1754234307891,2.6651,3466.7,3466.6,2.1909]
[1754234308292,2.6651,3466.7,3466.6,2.1567]
[1754234308591,3.4059,3466.7,3466.6,1.2018]
[1754234310492,2.6651,3466.7,3466.6,2.1909]
[1754234310899,3.24195,3467.2,3467.1,0.8601]
[1754234311188,3.98275,3467.2,3467.1,0.7195]
[1754234311792,1.3561,3467.0,3466.9,0.4823]
[1754234312089,3.4059,3467.0,3466.9,0.4823]
[1754234312296,2.6651,3466.4,3466.3,2.04839]
[1754234312592,2.6651,3466.4,3466.3,22.74169]
[1754234312994,3.4059,3466.4,3466.3,0.7195]
[1754234313382,1.3561,3466.2,3466.1,20.4893]
[1754234313585,3.98291,3466.2,3465.8,0.57707]
[1754234313784,3.4059,3465.8,3465.7,23.2138]
[1754234313986,3.4059,3465.8,3465.7,24.7934]
[1754234314193,3.4059,3465.8,3465.7,25.3157]
[1754234314689,2.6651,3465.8,3465.7,25.3705]
[1754234314891,2.6651,3465.8,3465.7,25.4047]
[1754234315392,2.6651,3466.2,3466.1,1.6196]
[1754234315597,2.6651,3466.2,3466.1,2.1019]
[1754234315793,3.4059,3466.2,3466.1,1.2018]
[1754234316295,3.4059,3466.2,3466.1,0.7195]
[1754234316501,2.6651,3465.9,3465.8,2.1019]
[1754234316797,2.6651,3465.9,3465.8,22.1069]
[1754234317300,2.6651,3465.9,3465.8,2.1567]
[1754234317495,2.6651,3465.9,3465.8,22.1607]
[1754234317793,2.6651,3465.9,3465.8,2.1909]
[1754234318001,2.6651,3465.9,3465.8,22.1949]
[1754234318191,2.0941,3465.9,3465.8,21.5836]
[1754234318391,3.4059,3465.9,3465.8,1.2018]
[1754234318699,3.4059,3465.9,3465.8,21.2058]
[1754234319899,2.6651,3465.9,3465.8,22.1607]
[1754234320099,2.6651,3465.9,3465.8,22.1949]
[1754234320601,2.1877,3466.2,3466.1,2.1909]
[1754234322402,2.6651,3466.2,3466.1,2.1909]
[1754234322604,1.6167,3466.2,3466.1,2.1909]
[1754234322806,1.6167,3466.7,3466.6,1.7086]
[1754234323103,1.6167,3466.7,3466.6,2.1909]
[1754234323595,1.5297,3466.7,3466.6,2.1909]
[1754234325197,0.57684,3467.2,3467.0,1.2156]
[1754234325500,3.13854,3467.2,3467.1,2.1294]
[1754234325701,3.82794,3467.2,3467.1,2.1294]
[1754234326403,3.2511,3467.2,3467.1,1.2156]
[1754234329496,2.5617,3467.2,3467.1,2.1749]
[1754234329896,3.2511,3467.2,3467.1,2.1294]
[1754234330698,3.2511,3467.2,3467.1,1.5861]
[1754234331401,3.2511,3467.2,3467.1,1.2156]
[1754234332503,3.2511,3467.2,3467.1,1.5861]
[1754234332805,2.5617,3467.2,3467.1,2.1294]
[1754234333005,2.5617,3467.2,3467.1,2.1574]
[1754234334107,2.5617,3467.2,3467.1,2.1749]
[1754234335812,0.57684,3467.3,3467.2,2.1749]
[1754234335813,1.96944,3467.3,3467.2,2.1749]
[1754234336007,2.44944,3467.3,3467.2,2.1749]
[1754234336407,3.13854,3467.3,3467.2,2.1749]
[1754234337607,3.2078,3467.7,3467.2,2.75173]
[1754234337807,0.6891,3467.6,3467.5,2.1749]
[1754234338210,1.1616,3467.6,3467.5,2.1749]
[1754234338415,0.6891,3467.6,3467.5,2.1749]
[1754234338911,2.44932,3468.0,3467.9,0.9019]
[1754234339111,3.13872,3468.0,3467.9,2.1574]
[1754234339308,6.40040013,3468.0,3467.9,1.2156]
[1754234339502,7.08950013,3468.0,3467.9,1.2156]
[1754234340209,0.9201,3467.5,3467.4,1.2156]
[1754234340410,3.2511,3467.5,3467.4,1.2156]
[1754234340710,3.8279,3467.5,3467.4,1.2156]
[1754234340912,0.5768,3467.5,3467.4,1.2156]
[1754234341119,2.0817,3467.5,3467.4,1.8044]
[1754234341318,2.5617,3467.5,3467.4,2.1749]
[1754234341518,2.44932,3468.0,3467.9,0.5034]
[1754234341718,2.44932,3468.0,3467.9,2.1294]
[1754234342016,1.42052,3468.0,3467.9,2.1294]
[1754234342313,3.13842,3468.0,3467.9,2.1749]
[1754234342818,3.8969,3468.1,3468.0,1.8044]
[1754234343010,1.2379,3468.4,3468.1,0.57669]
[1754234343207,2.44921,3468.6,3468.5,2.1749]
[1754234343814,2.5617,3468.6,3468.5,2.1749]
[1754234344324,1.5329,3468.6,3468.5,2.1749]
[1754234344518,3.2511,3468.6,3468.5,1.2156]
[1754234345120,1.42797,3468.3,3468.2,1.2156]
[1754234345422,2.5617,3468.3,3468.2,2.1294]
[1754234345619,3.2511,3468.3,3468.2,2.1294]
[1754234346019,2.5617,3468.3,3468.2,2.1574]
[1754234346222,2.5617,3468.3,3468.2,2.1749]
[1754234346824,1.5329,3468.3,3468.2,2.1749]
[1754234347023,1.1616,3468.3,3468.2,2.1749]
[1754234347315,1.1616,3468.6,3468.5,2.1749]
[1754234348216,2.0817,3468.7,3468.6,1.4627]
[1754234348416,1.1616,3468.7,3468.6,2.1749]
[1754234348627,1.04908,3468.8,3468.7,2.1749]
[1754234348919,1.42038,3468.8,3468.7,2.1749]
[1754234349118,3.13828,3468.8,3468.7,1.5861]
[1754234349615,3.13828,3468.8,3468.7,2.1294]
[1754234349812,3.82768,3468.8,3468.7,2.1294]
[1754234351423,3.2511,3468.7,3468.6,1.2156]
[1754234351821,2.5617,3468.7,3468.6,2.1574]
[1754234352223,2.5617,3468.7,3468.6,2.1749]
[1754234352422,1.5329,3468.7,3468.6,2.1749]
[1754234353322,2.5617,3468.7,3468.6,2.1749]
[1754234353523,2.5617,3468.7,3468.6,2.1294]
[1754234353723,3.2679,3468.7,3468.2,0.5529]
[1754234353922,4.2078,3469.0,3468.1,3.2078]
[1754234353923,3.12718,3468.2,3468.1,3.2078]
[1754234354224,3.2567,3467.9,3467.8,2.129]
[1754234354528,2.5505,3467.9,3467.8,2.129]
[1754234354822,3.2567,3467.9,3467.8,2.129]
[1754234355023,2.5505,3467.9,3467.8,2.129]
[1754234355725,3.2567,3467.9,3467.8,1.2071]
[1754234356624,3.2567,3467.9,3467.8,1.5761]
[1754234357131,3.2567,3467.9,3467.8,2.129]
[1754234357629,3.2567,3467.9,3467.8,1.2071]
[1754234359126,3.2567,3467.9,3467.8,0.7232]
[1754234359529,3.2567,3467.9,3467.8,1.2071]
[1754234359725,3.2567,3467.9,3467.8,2.129]
[1754234360126,2.5505,3467.9,3467.8,2.129]
[1754234361117,3.12724,3467.9,3467.8,1.2071]
[1754234361325,2.5505,3467.8,3467.7,2.129]
[1754234362028,2.0349,3467.3,3467.2,3.6917]
[1754234362330,3.2567,3467.3,3467.2,4.4149]
[1754234362524,3.2567,3467.3,3467.2,5.3368]
[1754234362725,2.5505,3467.3,3467.2,5.3368]
[1754234363031,2.0609,3467.3,3467.2,5.3368]
[1754234363224,1.5453,3467.3,3467.2,5.3368]
[1754234363621,0.5768,3467.5,3467.3,1.2761]
[1754234363622,1.2054,3467.5,3467.3,1.2761]
[1754234363827,0.57673,3467.9,3467.4,2.129]
[1754234364123,0.57671,3468.0,3467.8,1.2761]
[1754234364319,1.8809,3468.1,3468.0,2.129]
[1754234364525,2.5871,3468.1,3468.0,2.129]
[1754234364925,2.5505,3468.1,3468.0,2.129]
[1754234365124,3.2567,3468.1,3468.0,2.129]
[1754234365729,3.2567,3468.1,3468.0,1.5761]
[1754234365936,3.2567,3468.1,3468.0,1.2071]
[1754234369630,3.2567,3468.1,3467.5,0.57679]
[1754234369631,3.26168013,3468.2,3467.4,0.57681]
[1754234369832,5.81218013,3467.6,3467.5,1.2071]
[1754234370136,5.81218013,3467.6,3467.3,3.2078]
[1754234370137,3.31789,3467.5,3467.4,0.4839]
[1754234370336,3.83349,3467.5,3467.4,0.4839]
[1754234370730,3.83349,3467.5,3467.4,1.2071]
[1754234370936,3.83349,3467.5,3467.4,1.76]
[1754234371337,2.5505,3466.9,3466.8,4.8529]
[1754234371638,2.5505,3466.9,3466.8,5.3368]
[1754234372924,2.5505,3466.9,3466.8,2.129]
[1754234375434,0.4747,3467.0,3466.9,2.129]
[1754234375740,1.8198,3467.0,3466.9,2.129]
[1754234376240,1.8198,3466.6,3466.5,2.129]
[1754234376841,1.5453,3466.6,3466.5,2.129]
[1754234378239,1.2054,3466.6,3466.5,2.129]
[1754234378440,0.7307,3466.6,3466.5,2.129]
[1754234381545,1.3302,3466.9,3466.8,0.369]
[1754234381738,1.8198,3466.9,3466.8,2.129]
[1754234382245,2.5505,3466.9,3466.8,2.129]
[1754234387349,3.12739,3466.9,3466.8,2.129]
[1754234387549,2.5505,3466.9,3466.8,2.129]
[1754234388342,3.12739,3466.9,3466.8,1.5607]
[1754234388537,3.2486,3466.9,3466.8,2.0829]
[1754234389141,2.5505,3466.9,3466.8,2.0829]
[1754234389356,3.12739,3466.9,3466.8,2.0829]
[1754234389651,2.4467,3466.5,3466.4,4.5639]
[1754234389847,2.4467,3466.5,3466.4,5.14088]
[1754234390048,2.4467,3466.5,3466.4,4.5639]
[1754234390349,2.4467,3466.5,3466.4,5.2224]
[1754234393449,6.98344013,3466.5,3466.4,4.3466]
[1754234393848,6.40648013,3466.5,3466.4,4.3466]
[1754234394646,6.40648013,3466.5,3466.4,3.2078]
[1754234394849,3.1448,3466.4,3466.3,0.6585]
[1754234395557,3.1448,3466.1,3466.0,3.2078]
[1754234395757,6.40648013,3466.1,3466.0,3.2078]
[1754234395939,6.40648013,3466.1,3466.0,3.8663]
[1754234396144,6.40648013,3466.1,3466.0,4.3466]
[1754234397550,6.40648013,3466.1,3466.0,4.8688]
[1754234398453,3.1448,3466.1,3466.0,5.2224]
[1754234400851,0.5358,3466.5,3466.1,0.57703]
[1754234401042,1.9673,3466.4,3466.3,2.0146]
[1754234401354,2.4467,3466.4,3466.3,2.0146]
[1754234402950,2.4467,3466.4,3466.0,3.2078]
[1754234402951,3.2078,3466.8,3466.5,0.8339]
[1754234403150,3.26168013,3467.0,3466.5,0.8339]
[1754234403151,3.26168013,3467.0,3466.9,2.0146]
[1754234403454,2.4467,3467.0,3466.9,2.0146]
[1754234404044,5.70838013,3467.0,3466.9,2.0146]
[1754234404250,6.40648013,3467.0,3466.9,1.4924]
[1754234404956,6.40648013,3467.0,3466.9,2.0146]
[1754234405156,5.70838013,3467.0,3466.9,2.0146]
[1754234405557,0.3316,3467.0,3466.9,2.0146]
[1754234405757,3.7436,3467.3,3466.9,2.0146]
[1754234405758,2.4467,3467.2,3467.1,0.8339]
[1754234405957,2.4467,3467.2,3467.1,2.0146]
[1754234406653,0.5358,3468.1,3467.8,0.57673]
[1754234406848,2.4467,3468.1,3468.0,2.0146]
[1754234407050,1.4315,3468.1,3468.0,2.0146]
[1754234407250,1.4315,3468.1,3467.6,3.2078]
[1754234407251,0.57671,3468.0,3467.6,3.2078]
[1754234407452,1.4315,3467.7,3467.6,4.0417]
[1754234407959,1.0999,3468.0,3467.9,2.0146]
[1754234408347,2.4467,3468.6,3468.5,0.4803]
[1754234408552,3.1448,3468.6,3468.5,1.1388]
[1754234408747,2.4467,3468.6,3468.5,2.0146]
[1754234408952,1.4315,3468.6,3468.5,2.0146]
[1754234409153,1.4315,3468.6,3468.5,5.2224]
[1754234410060,1.9673,3468.6,3468.5,5.2224]
[1754234410562,2.4467,3468.6,3468.5,5.2224]
[1754234410764,2.4467,3468.6,3468.5,2.0146]
[1754234410958,2.4467,3468.6,3468.5,0.6585]
[1754234411159,3.1448,3468.6,3468.5,0.6585]
[1754234411964,3.1448,3468.6,3468.5,1.1388]
[1754234414362,2.4467,3468.6,3468.5,1.992]
[1754234415067,1.4315,3468.6,3468.5,1.4631]
[1754234415263,1.4315,3468.6,3468.5,1.9627]
[1754234415866,1.0999,3468.6,3468.5,1.9627]
[1754234416561,2.1409,3469.0,3468.9,1.9603]
[1754234416767,1.0,3469.0,3468.9,1.9603]
[1754234417363,1.6827,3469.0,3468.9,1.9603]
[1754234417661,2.4953,3469.0,3468.9,1.9603]
[1754234419064,1.0,3469.0,3468.9,1.9603]
[1754234419364,1.6827,3469.0,3468.9,1.9603]
[1754234419769,2.1409,3469.0,3468.9,1.9603]
[1754234419964,2.9593,3469.0,3468.9,1.9603]
[1754234420164,3.4456,3469.0,3468.9,1.9603]
[1754234420667,3.4456,3469.0,3468.9,1.1364]
[1754234420668,4.1506,3469.0,3468.9,1.1364]
[1754234421162,1.85324,3468.5,3468.4,1.1364]
[1754234421364,3.72724,3468.5,3468.4,1.1364]
[1754234421757,3.1506,3468.5,3468.4,1.4607]
[1754234421963,2.4456,3468.5,3468.4,1.9603]
[1754234422161,0.6827,3468.6,3468.5,1.9603]
[1754234422361,1.1409,3468.9,3468.5,0.7895]
[1754234422567,1.1409,3468.9,3468.8,1.9603]
[1754234423066,1.0,3469.0,3468.9,1.9603]
[1754234423265,1.6827,3469.0,3468.9,1.9603]
[1754234423568,2.1409,3469.0,3468.9,1.9603]
[1754234423871,1.0,3469.0,3468.9,1.9603]
[1754234425161,2.9816,3469.0,3468.9,1.9603]
[1754234425360,3.4456,3469.0,3468.9,1.9603]
[1754234427375,2.4953,3469.0,3468.9,1.9603]
[1754234429375,2.9816,3469.0,3468.9,1.9603]
[1754234429571,2.4953,3469.0,3468.9,1.9603]
[1754234429976,2.1409,3469.0,3468.9,1.9603]
[1754234430182,1.0,3469.0,3468.9,1.9603]
[1754234432881,2.1409,3469.0,3468.9,1.9603]
[1754234433071,2.4953,3469.0,3468.9,21.8813]
[1754234433278,2.1409,3469.0,3468.9,21.8813]
[1754234434785,2.9816,3469.0,3468.9,21.8813]
[1754234435685,2.4953,3469.0,3468.9,21.8813]
[1754234436282,2.1409,3469.0,3468.9,21.8813]
[1754234437888,3.4456,3469.0,3468.9,21.8813]
[1754234438678,3.4456,3469.0,3468.6,3.2078]
[1754234438679,4.1506,3469.0,3468.6,3.2078]
[1754234438880,6.41228013,3468.8,3468.7,0.6712]
[1754234439186,3.1506,3468.7,3468.6,23.1238]
[1754234439381,3.1506,3468.7,3468.6,23.795]
[1754234439575,3.1506,3468.7,3468.6,24.2602]
[1754234440885,3.1506,3468.7,3468.6,3.2078]
[1754234441184,3.1506,3468.3,3468.2,23.1228]
[1754234441489,6.41228013,3468.3,3468.2,23.1228]
[1754234441786,6.41228013,3468.3,3467.5,3.26143824]
[1754234441787,1.3877,3467.8,3467.5,3.26143824]
[1754234441979,3.1506,3467.6,3467.5,0.6712]
[1754234442179,3.1506,3467.6,3467.5,1.1364]
[1754234442991,3.1506,3467.6,3467.4,23.1228]
[1754234443182,2.4679,3467.5,3467.4,23.794]
[1754234443382,3.1506,3467.5,3467.4,23.794]
[1754234444190,3.1506,3467.5,3467.4,24.2592]
[1754234444585,2.4456,3467.5,3467.4,25.0891]
[1754234445793,2.3778,3468.0,3467.9,0.7855]
[1754234445993,1.8963,3468.0,3467.9,1.1036]
[1754234446293,3.0679,3468.0,3467.9,0.6401]
[1754234448187,2.3778,3467.5,3467.4,3.2078]
[1754234448392,2.3778,3467.5,3467.4,5.139]
[1754234449389,2.3778,3467.5,3467.4,1.9312]
[1754234450884,1.9445,3467.5,3467.4,1.9312]
[1754234451390,3.64463,3467.9,3467.8,0.4635]
[1754234451588,2.28373,3467.9,3467.4,0.5056]
[1754234451781,1.8424,3467.8,3467.5,0.5056]
[1754234451986,1.2255,3467.6,3467.5,1.2911]
[1754234452190,2.3778,3467.6,3467.5,1.2911]
[1754234452495,2.3778,3467.6,3467.5,1.9312]
[1754234458097,1.2255,3468.1,3468.0,1.04021]
[1754234458399,2.3778,3468.1,3468.0,2.50791]
[1754234459193,3.0679,3468.1,3468.0,2.50791]
[1754234459398,3.0679,3468.1,3468.0,1.9312]
[1754234459591,7.04611013,3468.5,3467.4,4.57011]
[1754234459592,0.8812,3467.5,3467.4,4.57011]
[1754234459792,2.3778,3467.5,3467.4,25.63081]
[1754234460297,5.63948013,3467.5,3467.4,3.2078]
[1754234460493,6.32958013,3467.5,3467.4,3.2078]
[1754234460798,6.32958013,3467.5,3466.9,41.512]
[1754234460799,1.2255,3466.3,3466.2,2.59023824]
[1754234460995,1.44213,3467.2,3466.0,4.3114]
[1754234460996,1.2255,3466.1,3466.0,4.3114]
[1754234461195,3.0679,3466.1,3466.0,4.3114]
[1754234461391,2.3778,3466.1,3466.0,5.139]
[1754234461594,0.6708,3466.1,3466.0,5.139]
[1754234461998,0.6901,3466.6,3466.0,5.139]
[1754234461999,2.3778,3466.4,3466.3,0.7855]
[1754234462194,3.26168013,3467.2,3466.3,1.9312]
[1754234462400,1.463,3466.8,3466.7,1.2911]
[1754234462597,0.6901,3466.7,3466.5,0.57695]
[1754234462797,3.0679,3466.6,3466.5,0.6401]
[1754234462995,3.0679,3466.6,3466.5,1.1036]
[1754234463301,0.6708,3466.8,3466.7,0.7855]
[1754234463498,1.2255,3467.2,3467.1,0.7855]
[1754234463800,1.2255,3467.2,3466.8,0.57691]
[1754234463996,1.2255,3467.0,3466.9,1.1036]
[1754234464202,2.3778,3467.0,3466.9,1.1036]
[1754234464701,2.3778,3467.0,3466.9,1.6092]
[1754234465000,2.3778,3467.0,3466.9,1.9312]
[1754234465997,0.6708,3467.4,3466.9,0.5056]
[1754234466193,1.1187,3467.1,3467.0,1.2911]
[1754234466396,1.9445,3467.1,3467.0,1.2911]
[1754234466593,2.3778,3467.1,3467.0,1.9312]
[1754234466797,2.3778,3467.1,3467.0,1.1036]
[1754234466999,3.0679,3467.1,3467.0,1.1036]
[1754234467800,2.3778,3467.1,3467.0,1.4256]
[1754234468098,2.3778,3467.1,3467.0,1.9312]
[1754234469904,3.0679,3467.1,3467.0,1.4256]
[1754234470702,0.57682,3467.4,3467.0,0.6401]
[1754234470906,2.3778,3466.9,3466.8,2.50811]
[1754234472298,1.463,3466.9,3466.8,5.71591]
[1754234473610,2.3778,3466.9,3466.8,4.6334]
[1754234474004,2.3778,3466.9,3466.8,5.1201]
[1754234474610,2.3778,3466.9,3466.8,4.6334]
[1754234474910,3.0525,3466.9,3466.8,24.2254]
[1754234475912,2.3778,3466.9,3466.8,24.542]
[1754234476112,2.3778,3466.9,3466.8,25.0287]
[1754234476809,1.4564,3467.4,3467.3,1.9067]
[1754234478207,2.4016,3467.4,3467.3,1.9067]
[1754234480606,2.4016,3467.8,3467.7,2.48346]
[1754234480816,2.4016,3467.8,3467.7,1.9067]
[1754234481506,1.1227,3468.1,3468.0,0.4182]
[1754234481708,2.4016,3468.1,3468.0,1.1034]
[1754234482312,2.4016,3468.1,3468.0,1.9067]
[1754234483313,3.0763,3468.1,3468.0,0.6852]
[1754234483612,3.0763,3468.0,3467.9,19.91]
[1754234483808,2.3086,3467.9,3467.8,1.1034]
[1754234484113,3.0763,3467.9,3467.8,21.0124]
[1754234485208,3.0763,3467.9,3467.8,1.1034]
[1754234486505,2.4016,3467.9,3467.8,1.9067]
[1754234487308,1.4564,3467.9,3467.8,1.9067]
[1754234487812,2.4016,3467.9,3467.8,1.9067]
[1754234489009,2.4016,3467.9,3467.3,3.2078]
[1754234489211,2.752,3467.5,3467.4,21.0084]
[1754234489408,3.0763,3467.5,3467.4,21.0084]
[1754234489610,3.0763,3467.5,3467.4,21.325]
[1754234489812,2.4016,3467.5,3467.4,21.8117]
[1754234491015,1.9676,3467.5,3467.4,21.8117]
[1754234491311,1.4564,3467.5,3467.4,21.8117]
[1754234493211,6.1861,3468.1,3468.0,1.1034]
[1754234493513,1.9676,3468.1,3468.0,22.38541]
[1754234495115,1.9676,3468.6,3468.5,0.57662]
[1754234495411,1.9676,3468.6,3468.5,1.42]
[1754234495412,2.4016,3468.6,3468.5,1.42]
[1754234495719,2.4016,3468.6,3468.3,20.5872]
[1754234495720,2.4016,3468.4,3468.3,20.5872]
[1754234495905,3.0763,3468.4,3468.3,21.0054]
[1754234496109,3.0763,3468.4,3468.3,21.322]
[1754234496311,3.0763,3468.4,3468.3,21.8087]
[1754234496609,2.4016,3468.4,3468.3,21.8087]
[1754234498213,3.0763,3468.4,3468.3,21.322]
[1754234499221,3.0763,3468.4,3467.7,0.6852]
[1754234499412,0.8355,3468.0,3467.9,1.9067]
[1754234499613,2.4016,3468.0,3467.9,1.9067]
[1754234500116,0.6887,3468.2,3467.8,19.899]
[1754234500414,3.8825,3468.7,3468.2,1.74858]
[1754234500415,0.6887,3468.3,3468.2,1.74858]
[1754234500611,1.1321,3468.3,3468.2,22.38138]
[1754234500811,1.1321,3468.3,3468.2,21.8047]
[1754234501113,1.4564,3468.3,3468.2,21.8047]
[1754234501310,1.9676,3468.3,3468.2,21.8047]
[1754234501913,2.4016,3468.3,3468.2,21.8047]
[1754234507118,0.57658,3468.8,3468.3,0.57666]
[1754234507318,2.947,3468.7,3468.6,1.9237]
[1754234511725,2.2744,3468.7,3468.6,1.9237]
[1754234512029,1.8584,3468.8,3468.7,2.50029]
[1754234512531,1.8584,3468.8,3468.7,1.9237]
[1754234512716,2.2744,3468.8,3468.7,1.9237]
[1754234513422,1.1659,3468.6,3468.5,3.2078]